[Event "Late-Titled-Tuesday-Blitz-May-28-2024"]
[Site "Chess.com"]
[Date "2024.05.28"]
[Round "4"]
[White "SoCalJuniorChess"]
[Black "Chess_Star1234"]
[Result "0-1"]
[WhiteElo "2228"]
[BlackElo "2434"]
[TimeControl "180+1"]
[EndTime "14:39:01 PDT"]
[Termination "Chess_Star1234 won by resignation"]

1. d4 {[%clk 0:02:57.5]} 1... d5 {[%clk 0:02:43.2]} 2. Nc3 {[%clk 0:02:57]} 2...
Nf6 {[%clk 0:02:43.7]} 3. Bf4 {[%clk 0:02:56.7]} 3... c6 {[%clk 0:02:43.3]} 4.
e3 {[%clk 0:02:55.3]} 4... Bf5 {[%clk 0:02:43.3]} 5. f3 {[%clk 0:02:55.6]} 5...
h5 {[%clk 0:02:42.6]} 6. Bd3 {[%clk 0:02:54.1]} 6... e6 {[%clk 0:02:42.2]} 7.
Bxf5 {[%clk 0:02:52.6]} 7... exf5 {[%clk 0:02:42.8]} 8. Qd3 {[%clk 0:02:52.1]}
8... g6 {[%clk 0:02:42.8]} 9. e4 {[%clk 0:02:47.4]} 9... fxe4 {[%clk 0:02:42.3]}
10. fxe4 {[%clk 0:02:48.3]} 10... Nxe4 {[%clk 0:02:42]} 11. Nxe4 {[%clk
0:02:47.3]} 11... dxe4 {[%clk 0:02:42.9]} 12. Qxe4+ {[%clk 0:02:48.2]} 12... Qe7
{[%clk 0:02:42.7]} 13. Qxe7+ {[%clk 0:02:48.2]} 13... Bxe7 {[%clk 0:02:42.8]}
14. O-O-O {[%clk 0:02:49.1]} 14... O-O {[%clk 0:02:39.9]} 15. Nf3 {[%clk
0:02:47.3]} 15... Nd7 {[%clk 0:02:39.1]} 16. Rhe1 {[%clk 0:02:46.5]} 16... Rfe8
{[%clk 0:02:36.8]} 17. Ne5 {[%clk 0:02:43.8]} 17... Nb6 {[%clk 0:02:33]} 18. b3
{[%clk 0:02:35.7]} 18... Rad8 {[%clk 0:02:26.4]} 19. c4 {[%clk 0:02:34.3]} 19...
Bf6 {[%clk 0:02:08.5]} 20. Kc2 {[%clk 0:02:19.3]} 20... Bg7 {[%clk 0:02:02.6]}
21. Kc3 {[%clk 0:02:10.4]} 21... Kf8 {[%clk 0:01:58.3]} 22. a4 {[%clk
0:02:03.4]} 22... Nd7 {[%clk 0:01:54.5]} 23. Nxd7+ {[%clk 0:01:56.2]} 23... Rxd7
{[%clk 0:01:55.4]} 24. Rxe8+ {[%clk 0:01:55.6]} 24... Kxe8 {[%clk 0:01:56.3]}
25. Re1+ {[%clk 0:01:53.7]} 25... Re7 {[%clk 0:01:56.5]} 26. Rxe7+ {[%clk
0:01:52.7]} 26... Kxe7 {[%clk 0:01:57.4]} 27. Bb8 {[%clk 0:01:50.9]} 27... a6
{[%clk 0:01:55.3]} 28. Kd3 {[%clk 0:01:49.8]} 28... Ke6 {[%clk 0:01:54.4]} 29.
Ke4 {[%clk 0:01:47.5]} 29... f5+ {[%clk 0:01:52.4]} 30. Kd3 {[%clk 0:01:48.1]}
30... Bh6 {[%clk 0:01:47.7]} 31. b4 {[%clk 0:01:44.5]} 31... g5 {[%clk
0:01:46.8]} 32. b5 {[%clk 0:01:43.9]} 32... g4 {[%clk 0:01:45.7]} 33. bxa6
{[%clk 0:01:39.7]} 33... bxa6 {[%clk 0:01:44.9]} 34. Kc3 {[%clk 0:01:40.3]}
34... Bf8 {[%clk 0:01:13.8]} 35. Be5 {[%clk 0:01:31.6]} 35... Be7 {[%clk
0:01:02.9]} 36. Kd3 {[%clk 0:01:11.5]} 36... Bg5 {[%clk 0:00:57.4]} 37. Kc3
{[%clk 0:01:08.6]} 37... f4 {[%clk 0:00:47.6]} 38. Kd3 {[%clk 0:01:07.9]} 38...
f3 {[%clk 0:00:46.5]} 39. gxf3 {[%clk 0:01:04.8]} 39... gxf3 {[%clk 0:00:47.4]}
40. Bg3 {[%clk 0:01:02.7]} 40... Kf5 {[%clk 0:00:39.2]} 41. d5 {[%clk
0:01:02.8]} 41... cxd5 {[%clk 0:00:39.8]} 42. cxd5 {[%clk 0:01:03.4]} 42... Kg4
{[%clk 0:00:37.2]} 43. Bf2 {[%clk 0:01:00.3]} 43... Kh3 {[%clk 0:00:36.6]} 44.
d6 {[%clk 0:00:39.1]} 44... Kg2 {[%clk 0:00:30.2]} 45. Be3 {[%clk 0:00:39.4]}
45... f2 {[%clk 0:00:20]} 46. Bxf2 {[%clk 0:00:33.4]} 46... Kxf2 {[%clk
0:00:20.9]} 47. Ke4 {[%clk 0:00:29.9]} 47... Kg2 {[%clk 0:00:20.8]} 48. Kf5
{[%clk 0:00:30.3]} 48... Bd8 {[%clk 0:00:21]} 49. h4 {[%clk 0:00:23.3]} 49...
Kg3 {[%clk 0:00:21.6]} 50. Ke6 {[%clk 0:00:18.4]} 50... Kxh4 {[%clk 0:00:22.5]}
51. Kd7 {[%clk 0:00:18.9]} 51... Ba5 {[%clk 0:00:22.4]} 52. Kc6 {[%clk
0:00:18.9]} 52... Kg4 {[%clk 0:00:22.9]} 53. Kb7 {[%clk 0:00:18.7]} 53... h4
{[%clk 0:00:21.6]} 54. Kxa6 {[%clk 0:00:19.2]} 54... Bd8 {[%clk 0:00:20.4]} 55.
Kb7 {[%clk 0:00:18.2]} 55... h3 {[%clk 0:00:21.1]} 56. Kc8 {[%clk 0:00:18.2]}
56... Bf6 {[%clk 0:00:21.1]} 57. a5 {[%clk 0:00:17.6]} 57... h2 {[%clk
0:00:21.8]} 58. a6 {[%clk 0:00:18.1]} 58... h1=Q {[%clk 0:00:22.4]} 59. a7
{[%clk 0:00:18.7]} 59... Qa8+ {[%clk 0:00:22.9]} 0-1

[Event "Late-Titled-Tuesday-Blitz-May-28-2024"]
[Site "Chess.com"]
[Date "2024.05.28"]
[Round "4"]
[White "GP9isback23"]
[Black "Kirill_Klukin"]
[Result "0-1"]
[WhiteElo "2676"]
[BlackElo "2894"]
[TimeControl "180+1"]
[EndTime "14:39:02 PDT"]
[Termination "Kirill_Klukin won on time"]

1. d4 {[%clk 0:03:00.9]} 1... Nf6 {[%clk 0:02:59.3]} 2. Nf3 {[%clk 0:03:01]}
2... e6 {[%clk 0:02:59.5]} 3. c4 {[%clk 0:02:59.7]} 3... Nc6 {[%clk 0:02:59.4]}
4. e3 {[%clk 0:02:58.8]} 4... Bb4+ {[%clk 0:02:59.8]} 5. Bd2 {[%clk 0:02:58.4]}
5... Qe7 {[%clk 0:03:00.1]} 6. Be2 {[%clk 0:02:57.6]} 6... Bxd2+ {[%clk
0:02:58.5]} 7. Nbxd2 {[%clk 0:02:55.7]} 7... O-O {[%clk 0:02:58]} 8. O-O {[%clk
0:02:55.8]} 8... d6 {[%clk 0:02:58.7]} 9. Rc1 {[%clk 0:02:54.6]} 9... e5 {[%clk
0:02:59.1]} 10. d5 {[%clk 0:02:51.1]} 10... Nb8 {[%clk 0:02:59.3]} 11. b4 {[%clk
0:02:51]} 11... a5 {[%clk 0:02:59.6]} 12. a3 {[%clk 0:02:51.7]} 12... axb4
{[%clk 0:02:59.9]} 13. axb4 {[%clk 0:02:52.6]} 13... Bf5 {[%clk 0:02:56.8]} 14.
Qb3 {[%clk 0:02:44.6]} 14... Nbd7 {[%clk 0:02:50.7]} 15. Nh4 {[%clk 0:02:40.8]}
15... Bg6 {[%clk 0:02:50.4]} 16. Nxg6 {[%clk 0:02:39.8]} 16... hxg6 {[%clk
0:02:51.3]} 17. Rfd1 {[%clk 0:02:37.9]} 17... Ra7 {[%clk 0:02:48]} 18. Ra1
{[%clk 0:02:17.1]} 18... Rfa8 {[%clk 0:02:47.7]} 19. Qb2 {[%clk 0:02:12.8]}
19... Qd8 {[%clk 0:02:41.1]} 20. Nb3 {[%clk 0:02:09.6]} 20... b6 {[%clk
0:02:15.1]} 21. Rxa7 {[%clk 0:02:00.5]} 21... Rxa7 {[%clk 0:02:16]} 22. c5
{[%clk 0:02:01.4]} 22... bxc5 {[%clk 0:02:12.3]} 23. bxc5 {[%clk 0:02:01.3]}
23... Qb8 {[%clk 0:02:07.5]} 24. Rb1 {[%clk 0:01:49.4]} 24... Nxc5 {[%clk
0:01:54.6]} 25. Qc2 {[%clk 0:01:34.1]} 25... Rb7 {[%clk 0:01:42.9]} 26. Bc4
{[%clk 0:01:24.4]} 26... Rb4 {[%clk 0:01:42.5]} 27. h3 {[%clk 0:01:10.8]} 27...
Qb6 {[%clk 0:01:33.3]} 28. Kh2 {[%clk 0:01:08.1]} 28... Nfe4 {[%clk 0:01:28.1]}
29. Nxc5 {[%clk 0:00:57.3]} 29... Nxc5 {[%clk 0:01:24.7]} 30. Ra1 {[%clk
0:00:51]} 30... Qb8 {[%clk 0:01:11.2]} 31. Ra2 {[%clk 0:00:44.5]} 31... Nd7
{[%clk 0:01:04.4]} 32. Be2 {[%clk 0:00:26.5]} 32... Nc5 {[%clk 0:00:50.6]} 33.
Bc4 {[%clk 0:00:21]} 33... g5 {[%clk 0:00:49.9]} 34. Qe2 {[%clk 0:00:19.3]}
34... g6 {[%clk 0:00:49.6]} 35. Rc2 {[%clk 0:00:17.7]} 35... Kg7 {[%clk
0:00:48.5]} 36. g3 {[%clk 0:00:11.6]} 36... Qa7 {[%clk 0:00:42.4]} 37. Kg2
{[%clk 0:00:11.5]} 37... Qa3 {[%clk 0:00:38.2]} 38. Kh2 {[%clk 0:00:11.1]} 38...
Qa4 {[%clk 0:00:31.8]} 39. Kg2 {[%clk 0:00:09.9]} 39... Qa5 {[%clk 0:00:22.6]}
40. Kh2 {[%clk 0:00:08.2]} 40... Qb6 {[%clk 0:00:23.2]} 41. Kg2 {[%clk
0:00:08.1]} 41... Na4 {[%clk 0:00:23.2]} 42. Kh2 {[%clk 0:00:08.1]} 42... Rb2
{[%clk 0:00:23.4]} 43. Bd3 {[%clk 0:00:05.6]} 43... Rxc2 {[%clk 0:00:23.4]} 44.
Qxc2 {[%clk 0:00:05.3]} 44... Nc5 {[%clk 0:00:24.2]} 45. Bc4 {[%clk 0:00:05.1]}
45... Qb4 {[%clk 0:00:24.3]} 46. Kg2 {[%clk 0:00:04.9]} 46... Nd7 {[%clk
0:00:24.3]} 47. Be2 {[%clk 0:00:03.7]} 47... Qc5 {[%clk 0:00:24.6]} 48. Qd1
{[%clk 0:00:02.5]} 48... Nf6 {[%clk 0:00:23.8]} 0-1

[Event "Late-Titled-Tuesday-Blitz-May-28-2024"]
[Site "Chess.com"]
[Date "2024.05.28"]
[Round "4"]
[White "N_Mullodzhanov"]
[Black "carloseduar100"]
[Result "0-1"]
[WhiteElo "2497"]
[BlackElo "2302"]
[TimeControl "180+1"]
[EndTime "14:39:04 PDT"]
[Termination "carloseduar100 won by checkmate"]

1. e4 {[%clk 0:03:00.9]} 1... e6 {[%clk 0:02:59.2]} 2. d4 {[%clk 0:02:59.9]}
2... d5 {[%clk 0:03:00.1]} 3. Nc3 {[%clk 0:03:00.3]} 3... Nf6 {[%clk 0:03:00.3]}
4. e5 {[%clk 0:02:59.8]} 4... Nfd7 {[%clk 0:03:00.5]} 5. Nce2 {[%clk 0:02:57.2]}
5... f6 {[%clk 0:02:58.6]} 6. exf6 {[%clk 0:02:55.1]} 6... Nxf6 {[%clk
0:02:58.3]} 7. Nf3 {[%clk 0:02:55.4]} 7... Bd6 {[%clk 0:02:58.7]} 8. Bf4 {[%clk
0:02:55.3]} 8... O-O {[%clk 0:02:59.5]} 9. g3 {[%clk 0:02:52.8]} 9... Nc6 {[%clk
0:02:59]} 10. h4 {[%clk 0:02:49]} 10... Re8 {[%clk 0:02:58.8]} 11. c3 {[%clk
0:02:43.6]} 11... e5 {[%clk 0:02:58.2]} 12. dxe5 {[%clk 0:02:43.7]} 12... Nxe5
{[%clk 0:02:59.1]} 13. Nxe5 {[%clk 0:02:41.3]} 13... Bxe5 {[%clk 0:03:00]} 14.
Bxe5 {[%clk 0:02:41.4]} 14... Rxe5 {[%clk 0:03:00.9]} 15. Qd4 {[%clk 0:02:34.4]}
15... Qe7 {[%clk 0:02:58.6]} 16. Qd2 {[%clk 0:02:12.2]} 16... Bg4 {[%clk
0:02:58.5]} 17. Rh2 {[%clk 0:02:01.9]} 17... Re8 {[%clk 0:02:56.9]} 18. f4
{[%clk 0:01:58.3]} 18... Re3 {[%clk 0:02:55.1]} 19. Rc1 {[%clk 0:01:22.8]} 19...
c6 {[%clk 0:02:45]} 20. Rc2 {[%clk 0:01:20.4]} 20... Qc5 {[%clk 0:02:41]} 21.
Qd4 {[%clk 0:01:04.2]} 21... Qxd4 {[%clk 0:02:37.2]} 22. cxd4 {[%clk 0:01:03.8]}
22... Rxg3 {[%clk 0:02:38.1]} 23. Kd2 {[%clk 0:00:54]} 23... Ne4+ {[%clk
0:02:32.5]} 24. Kc1 {[%clk 0:00:54]} 24... Re3 {[%clk 0:02:32.5]} 25. Rg2 {[%clk
0:00:51.4]} 25... Nf6 {[%clk 0:02:29.3]} 26. b3 {[%clk 0:00:47.8]} 26... Rf3
{[%clk 0:02:12.9]} 27. Ng3 {[%clk 0:00:27.1]} 27... Rxf1+ {[%clk 0:02:05]} 28.
Nxf1 {[%clk 0:00:27.5]} 28... Re1+ {[%clk 0:02:05.3]} 29. Kb2 {[%clk 0:00:27.3]}
29... Rxf1 {[%clk 0:02:05.9]} 30. Rgf2 {[%clk 0:00:25.5]} 30... Rxf2 {[%clk
0:02:00.8]} 31. Rxf2 {[%clk 0:00:25.6]} 31... Kf7 {[%clk 0:02:01.3]} 32. f5
{[%clk 0:00:22.1]} 32... Ne4 {[%clk 0:02:00.6]} 33. Rf4 {[%clk 0:00:22.1]} 33...
h5 {[%clk 0:02:01.2]} 34. Kc2 {[%clk 0:00:19.8]} 34... Kf6 {[%clk 0:02:00.8]}
35. Kd3 {[%clk 0:00:19.8]} 35... Bxf5 {[%clk 0:02:01.3]} 36. Ke3 {[%clk
0:00:20.1]} 36... g6 {[%clk 0:02:01.7]} 37. b4 {[%clk 0:00:19.1]} 37... a6
{[%clk 0:02:00.7]} 38. a4 {[%clk 0:00:19.4]} 38... Nc3 {[%clk 0:01:58.4]} 39. a5
{[%clk 0:00:15.5]} 39... Na2 {[%clk 0:01:58.4]} 40. Rf1 {[%clk 0:00:15.8]} 40...
Nxb4 {[%clk 0:01:57.5]} 41. Rf2 {[%clk 0:00:16]} 41... Nc2+ {[%clk 0:01:53.1]}
42. Kf4 {[%clk 0:00:16.3]} 42... Nxd4 {[%clk 0:01:52.6]} 43. Rb2 {[%clk
0:00:16.8]} 43... Bc8 {[%clk 0:01:52]} 44. Rd2 {[%clk 0:00:16]} 44... Nf5 {[%clk
0:01:51.8]} 45. Re2 {[%clk 0:00:15.9]} 45... Be6 {[%clk 0:01:39.4]} 46. Rb2
{[%clk 0:00:16]} 46... Nd6 {[%clk 0:01:39.9]} 47. Rb1 {[%clk 0:00:10.9]} 47...
d4 {[%clk 0:01:36.4]} 48. Rd1 {[%clk 0:00:11]} 48... c5 {[%clk 0:01:28.4]} 49.
Rd3 {[%clk 0:00:09.7]} 49... Bf5 {[%clk 0:01:25.7]} 50. Rf3 {[%clk 0:00:09.3]}
50... Ke6 {[%clk 0:01:24]} 51. Rf2 {[%clk 0:00:09.4]} 51... Kd5 {[%clk
0:01:24.1]} 52. Rb2 {[%clk 0:00:09.1]} 52... c4 {[%clk 0:01:23.3]} 53. Kf3
{[%clk 0:00:09.6]} 53... c3 {[%clk 0:01:23]} 54. Rf2 {[%clk 0:00:06.8]} 54... d3
{[%clk 0:01:20.1]} 55. Ke3 {[%clk 0:00:06.5]} 55... Nc4+ {[%clk 0:01:20.4]} 56.
Kf3 {[%clk 0:00:05.7]} 56... d2 {[%clk 0:01:20.6]} 57. Ke2 {[%clk 0:00:06.1]}
57... Bg4+ {[%clk 0:01:20.3]} 58. Kd3 {[%clk 0:00:02.7]} 58... d1=Q+ {[%clk
0:01:19.1]} 59. Kxc3 {[%clk 0:00:03.6]} 59... Qd4+ {[%clk 0:01:16.9]} 60. Kb3
{[%clk 0:00:03.9]} 60... Nxa5+ {[%clk 0:01:15.8]} 61. Ka3 {[%clk 0:00:03]} 61...
Nc4+ {[%clk 0:01:12.7]} 62. Kb3 {[%clk 0:00:03]} 62... Bd1+ {[%clk 0:01:13.1]}
63. Kb4 {[%clk 0:00:01.5]} 63... a5+ {[%clk 0:01:11.7]} 64. Kb5 {[%clk
0:00:01.8]} 64... Qc5# {[%clk 0:01:09.5]} 0-1

[Event "Late-Titled-Tuesday-Blitz-May-28-2024"]
[Site "Chess.com"]
[Date "2024.05.28"]
[Round "4"]
[White "Umumba_FM"]
[Black "maracayo"]
[Result "0-1"]
[WhiteElo "2605"]
[BlackElo "2429"]
[TimeControl "180+1"]
[EndTime "14:39:06 PDT"]
[Termination "maracayo won by checkmate"]

1. d4 {[%clk 0:03:00.9]} 1... d6 {[%clk 0:03:00]} 2. e4 {[%clk 0:03:00.5]} 2...
Nf6 {[%clk 0:02:59.5]} 3. Nc3 {[%clk 0:03:00.2]} 3... c6 {[%clk 0:02:59.6]} 4.
a4 {[%clk 0:02:59.8]} 4... Qa5 {[%clk 0:02:59.1]} 5. Bd3 {[%clk 0:02:58.1]} 5...
e5 {[%clk 0:02:58.5]} 6. Ne2 {[%clk 0:02:54.3]} 6... Nbd7 {[%clk 0:02:58]} 7.
O-O {[%clk 0:02:54.2]} 7... Be7 {[%clk 0:02:58]} 8. f4 {[%clk 0:02:53.9]} 8...
O-O {[%clk 0:02:57]} 9. Kh1 {[%clk 0:02:52.1]} 9... b5 {[%clk 0:02:35.2]} 10.
Be3 {[%clk 0:02:32.1]} 10... b4 {[%clk 0:02:34.2]} 11. Nb1 {[%clk 0:02:32.1]}
11... c5 {[%clk 0:02:33]} 12. c3 {[%clk 0:02:27.4]} 12... bxc3 {[%clk
0:02:25.3]} 13. bxc3 {[%clk 0:02:28.3]} 13... Re8 {[%clk 0:02:09.4]} 14. Nd2
{[%clk 0:02:10.5]} 14... Bf8 {[%clk 0:02:02.6]} 15. Nc4 {[%clk 0:01:58.6]} 15...
Qc7 {[%clk 0:02:02.5]} 16. fxe5 {[%clk 0:01:55.9]} 16... dxe5 {[%clk 0:02:01.5]}
17. d5 {[%clk 0:01:54.8]} 17... Ba6 {[%clk 0:01:52.6]} 18. Ng3 {[%clk
0:01:45.7]} 18... Rad8 {[%clk 0:01:37.3]} 19. Nxe5 {[%clk 0:01:32.3]} 19... Qxe5
{[%clk 0:01:29.9]} 20. Bxa6 {[%clk 0:01:31.5]} 20... Qxc3 {[%clk 0:01:13]} 21.
Bg5 {[%clk 0:01:16.7]} 21... h6 {[%clk 0:01:11.6]} 22. Bxf6 {[%clk 0:01:08.6]}
22... Nxf6 {[%clk 0:01:12.5]} 23. Bd3 {[%clk 0:01:04.7]} 23... g6 {[%clk
0:00:50.1]} 24. Rc1 {[%clk 0:01:01.4]} 24... Qd4 {[%clk 0:00:49.5]} 25. Rc4
{[%clk 0:00:59.4]} 25... Qe5 {[%clk 0:00:49.5]} 26. Qf3 {[%clk 0:00:56.1]} 26...
Bg7 {[%clk 0:00:47.8]} 27. Rxc5 {[%clk 0:00:56.2]} 27... h5 {[%clk 0:00:41.8]}
28. Rc6 {[%clk 0:00:56.3]} 28... h4 {[%clk 0:00:40.4]} 29. Ne2 {[%clk
0:00:52.2]} 29... Rd6 {[%clk 0:00:29.1]} 30. Rxd6 {[%clk 0:00:51.1]} 30... Qxd6
{[%clk 0:00:30]} 31. Ng1 {[%clk 0:00:37.3]} 31... Rc8 {[%clk 0:00:20.6]} 32. Nh3
{[%clk 0:00:35.9]} 32... Rc3 {[%clk 0:00:19.5]} 33. Qe2 {[%clk 0:00:36.1]} 33...
Nd7 {[%clk 0:00:17.3]} 34. Ng5 {[%clk 0:00:33.8]} 34... Ne5 {[%clk 0:00:17.4]}
35. Bb1 {[%clk 0:00:34.5]} 35... Bh6 {[%clk 0:00:15.1]} 36. Nf3 {[%clk
0:00:33.8]} 36... Bf4 {[%clk 0:00:13.4]} 37. Nxh4 {[%clk 0:00:31.8]} 37... Bxh2
{[%clk 0:00:12.2]} 38. Nf3 {[%clk 0:00:21.7]} 38... Bg3 {[%clk 0:00:10.6]} 39.
Nxe5 {[%clk 0:00:21.4]} 39... Qxe5 {[%clk 0:00:10]} 40. Qg4 {[%clk 0:00:21.6]}
40... Kg7 {[%clk 0:00:05.3]} 41. d6 {[%clk 0:00:21.9]} 41... Qxd6 {[%clk
0:00:04.7]} 42. Ba2 {[%clk 0:00:22.6]} 42... Rc7 {[%clk 0:00:02.6]} 43. Bd5
{[%clk 0:00:22]} 43... Be5 {[%clk 0:00:02.4]} 44. Qf3 {[%clk 0:00:20.4]} 44...
Re7 {[%clk 0:00:02.7]} 45. Bxf7 {[%clk 0:00:20.4]} 45... Qf6 {[%clk 0:00:02.6]}
46. Qxf6+ {[%clk 0:00:20.2]} 46... Bxf6 {[%clk 0:00:03.5]} 47. Bd5 {[%clk
0:00:21.1]} 47... Bd4 {[%clk 0:00:03.7]} 48. Rb1 {[%clk 0:00:21.7]} 48... Kh6
{[%clk 0:00:03.8]} 49. g3 {[%clk 0:00:22.2]} 49... Kg5 {[%clk 0:00:04.4]} 50.
Kg2 {[%clk 0:00:23.1]} 50... Rc7 {[%clk 0:00:03.6]} 51. Rb5 {[%clk 0:00:22.8]}
51... Rc2+ {[%clk 0:00:04.1]} 52. Kf3 {[%clk 0:00:23.4]} 52... Rf2# {[%clk
0:00:04.2]} 0-1

[Event "Late-Titled-Tuesday-Blitz-May-28-2024"]
[Site "Chess.com"]
[Date "2024.05.28"]
[Round "4"]
[White "colegiodemadrid"]
[Black "Iuckyducky"]
[Result "1-0"]
[WhiteElo "2507"]
[BlackElo "2255"]
[TimeControl "180+1"]
[EndTime "14:39:09 PDT"]
[Termination "colegiodemadrid won by resignation"]

1. d4 {[%clk 0:03:00.9]} 1... Nf6 {[%clk 0:02:54.9]} 2. c4 {[%clk 0:03:01.2]}
2... e6 {[%clk 0:02:55.4]} 3. Nc3 {[%clk 0:03:00.9]} 3... b6 {[%clk 0:02:56]} 4.
f3 {[%clk 0:02:55.2]} 4... Bb7 {[%clk 0:02:43.1]} 5. e4 {[%clk 0:02:54.7]} 5...
d5 {[%clk 0:02:44]} 6. cxd5 {[%clk 0:02:53.8]} 6... exd5 {[%clk 0:02:43]} 7. e5
{[%clk 0:02:54.7]} 7... Nfd7 {[%clk 0:02:43.2]} 8. f4 {[%clk 0:02:53.7]} 8...
Be7 {[%clk 0:02:42.9]} 9. Nf3 {[%clk 0:02:54.1]} 9... O-O {[%clk 0:02:41.3]} 10.
Bd3 {[%clk 0:02:54.5]} 10... c5 {[%clk 0:02:41.9]} 11. Be3 {[%clk 0:02:52.4]}
11... cxd4 {[%clk 0:02:26.5]} 12. Nxd4 {[%clk 0:02:53.3]} 12... Nc5 {[%clk
0:02:22.9]} 13. Bc2 {[%clk 0:02:51.5]} 13... Ne4 {[%clk 0:02:14.9]} 14. O-O
{[%clk 0:02:51.7]} 14... Nd7 {[%clk 0:02:11.4]} 15. Qf3 {[%clk 0:02:40.4]} 15...
Nxc3 {[%clk 0:02:01.7]} 16. bxc3 {[%clk 0:02:39.5]} 16... Rc8 {[%clk 0:01:53.7]}
17. Qh5 {[%clk 0:02:30.4]} 17... g6 {[%clk 0:01:46.8]} 18. Qh6 {[%clk
0:02:30.5]} 18... Re8 {[%clk 0:01:46.7]} 19. Bd2 {[%clk 0:02:24.6]} 19... Bf8
{[%clk 0:01:46.6]} 20. Qh3 {[%clk 0:02:21.8]} 20... Nc5 {[%clk 0:01:36.7]} 21.
Rae1 {[%clk 0:02:15.5]} 21... Ne4 {[%clk 0:01:26.8]} 22. Bxe4 {[%clk 0:02:14]}
22... dxe4 {[%clk 0:01:27.2]} 23. Qg3 {[%clk 0:02:14.4]} 23... Qd5 {[%clk
0:01:19.4]} 24. h4 {[%clk 0:02:10.6]} 24... h5 {[%clk 0:01:17.2]} 25. f5 {[%clk
0:01:50.9]} 25... Qxe5 {[%clk 0:01:11.6]} 26. Bf4 {[%clk 0:01:51.2]} 26... Qg7
{[%clk 0:01:08.8]} 27. Bg5 {[%clk 0:01:43.3]} 27... Qe5 {[%clk 0:00:52.1]} 28.
Bf4 {[%clk 0:01:41.5]} 28... Qg7 {[%clk 0:00:52.2]} 29. fxg6 {[%clk 0:01:42.1]}
29... fxg6 {[%clk 0:00:51.4]} 30. Bg5 {[%clk 0:01:34.9]} 30... Qe5 {[%clk
0:00:40.8]} 31. Qe3 {[%clk 0:01:28.6]} 31... Bg7 {[%clk 0:00:38.1]} 32. Bf4
{[%clk 0:01:26.5]} 32... Qa5 {[%clk 0:00:28]} 33. Rc1 {[%clk 0:01:26.1]} 33...
Qxa2 {[%clk 0:00:27.8]} 34. Qg3 {[%clk 0:01:25.9]} 34... Kh7 {[%clk 0:00:25.3]}
35. Be3 {[%clk 0:01:22.1]} 35... Rf8 {[%clk 0:00:20.7]} 36. Rxf8 {[%clk
0:01:17.5]} 36... Rxf8 {[%clk 0:00:21.3]} 37. Qc7 {[%clk 0:01:17.5]} 37... Qf7
{[%clk 0:00:20.8]} 38. Qg3 {[%clk 0:01:16.6]} 38... Qa2 {[%clk 0:00:20.5]} 39.
c4 {[%clk 0:01:12.4]} 39... Qb2 {[%clk 0:00:17.7]} 40. Ne6 {[%clk 0:01:10.9]}
40... Rf7 {[%clk 0:00:16.2]} 41. Ng5+ {[%clk 0:01:10.1]} 41... Kh8 {[%clk
0:00:16.7]} 42. Nxf7+ {[%clk 0:01:10.4]} 42... Kg8 {[%clk 0:00:17.1]} 43. Qb8+
{[%clk 0:01:08.5]} 43... Kxf7 {[%clk 0:00:17.3]} 44. Qxb7+ {[%clk 0:01:09.1]}
44... Kg8 {[%clk 0:00:18]} 45. Qxe4 {[%clk 0:01:07.9]} 45... Kh7 {[%clk
0:00:16.5]} 46. Rf1 {[%clk 0:01:07.3]} 46... a5 {[%clk 0:00:13.8]} 47. Rf7
{[%clk 0:01:03.9]} 47... Qa1+ {[%clk 0:00:03.2]} 48. Kh2 {[%clk 0:01:03.6]}
48... Kg8 {[%clk 0:00:01.8]} 49. Qe8+ {[%clk 0:01:02.7]} 49... Kh7 {[%clk
0:00:01.8]} 50. Qe4 {[%clk 0:00:54.4]} 50... a4 {[%clk 0:00:01.9]} 51. Qf4
{[%clk 0:00:52.1]} 51... a3 {[%clk 0:00:01.5]} 52. Qh6+ {[%clk 0:00:47.7]} 52...
Kg8 {[%clk 0:00:01]} 53. Qxg6 {[%clk 0:00:46.4]} 53... a2 {[%clk 0:00:01.1]} 54.
Re7 {[%clk 0:00:44]} 54... Qf6 {[%clk 0:00:01]} 55. Re8+ {[%clk 0:00:43.7]}
55... Qf8 {[%clk 0:00:00.7]} 56. Rxf8+ {[%clk 0:00:43.6]} 56... Kxf8 {[%clk
0:00:01.2]} 57. Qf5+ {[%clk 0:00:40]} 57... Kg8 {[%clk 0:00:01.8]} 58. Qe6+
{[%clk 0:00:40.1]} 58... Kf8 {[%clk 0:00:01.9]} 59. Qc8+ {[%clk 0:00:36.6]}
59... Kf7 {[%clk 0:00:02.3]} 60. Qb7+ {[%clk 0:00:37.1]} 60... Kf8 {[%clk
0:00:02.7]} 61. Qa8+ {[%clk 0:00:37.2]} 61... Kf7 {[%clk 0:00:03.1]} 62. Qxa2
{[%clk 0:00:37.8]} 62... Be5+ {[%clk 0:00:03]} 63. g3 {[%clk 0:00:37.4]} 63...
Ke6 {[%clk 0:00:03.7]} 64. Bf4 {[%clk 0:00:37.7]} 1-0